Workbook

Sheet Forside
C3: Holdbarhetsforsøk
C5: Modell: | D5: Buksemetoden
C8: Forsøket er utført ved: | D8: Avd for Medisinsk biokjemi, Rikshospitalet
C9: Utført I perioden: | D9: 27.01.20-09.02.20
C10: Kontaktperson: | D10: Johanne Holstad (Jholstad@ous-hf.no), Muna Dahir Ahmed(mundah@ous-hf.no)
C11: (navn, epost eller telefonnr.)
C12: Navn på komponent: | D12: CK-MB
C13: Prøvemateriale: | D13: Heparinplasma

Sheet Beskrivelse av forsø
A1: BESKRIVELSE AV FORSØKET
A2: CM-MB
A3: Komponent
A4: Hvilket instrument er benyttet?
A5: Roche, cobas 8000, e602
A7: Hvilken analysemetode er benyttet?
A8: Elektrokjemoluminescensimmunoassay (ECLIA)
A10: Hvilket reagens er benyttet?
A11: CK-MB 05894808 190
A13: Er forsøket gjennomført under tilsvarende betingelser som de som gjelder ved vanlig rutinedrift (kryss av):
A14: x | B14: ja, gjennomført under rutinebetingelser
B15: ja, rutinebetingelser er simulert
B16: nei
A18: Hvilke transportformer er testet/simulert?
B19: Postgang
B20: Hentetjeneste
B21: Rørpost
A22: Ingen, kun oppbevaring | B22: Annet:
A24: NB! Sett inn flere rader dersom du trenger det.
A25: Gi en beskrivelse av hver betingelse: | B25: Betingelse 0 (Ref) | C25: Betingelse 1 | D25: Betingelse 2 | E25: Betingelse 3 | F25: Betingelse 4 | G25: Betingelse 5
A26: Prøverør type | B26: Vacuette (heparinplasma)
A27: Tid fra prøvetaking til sentrifugering (min.) | B27: 30 min
A28: Tid fra prøvetaking til analysering (min/timer/dager/uker) | B28: 1 time | C28: 1 døgn | D28: 2 døgn | E28: 3 døgn | F28: 4 døgn | G28: 5 døgn
A29: Tid fra sentrifugering til analysering (min/timer/dager/uker) | B29: 20 min
A30: Temperatur før sentrifugering (◦C) | B30: Romtemperatur
A31: Temperatur etter sentrifugering (◦C) | B31: Romtemperatur | C31: 2-8 C | D31: 2-8 C | E31: 2-8 C | F31: 2-8 C | G31: 2-8 C
A32: Sentrifugeringsegenskaper*:
A33: Hastighet (G) | B33: 2000
A34: Temperatur (◦C) | B34: 20
A35: Tid (min.) | B35: 10
A36: Spesielle betingelser
A37: Luftfuktighet (g/m3)
A38: pH
A39: Bruk av tørris (bare noter hvis brukt)
A40: Har prøven vært frosset? Oppgi temperatur
A41: Andre betingelser (oppgi)
A43: *Dersom det er brukt dobbel sentrifugeringstid angis hastighet / tid / temperatur både for 1. og 2. sentrifugering

Sheet Bukseplott
A1: Holdbarhet, buksemetode | H1: Konstant analytisk CV for alle konsentrasjoner (J/N)? | K1: j | L1: =IF(K1="N","Sa","CVa") -> CVa | M1: 0.06 | N1: Sigma
L2: Mål 1 | M2: 0.061 | N2: =Mål_1/s -> 1.016666667
L3: Mål 2 | N3: =Mål_2/s -> 0
A4: =OR(K1="N",K1="n") -> FALSE | B4: 0-still plott: CTRL x | E4: Rens plott: CTRL z | L4: TEa | M4: 0.14 | N4: =TEa/s -> 2.333333333
A5: Prøve nr | B5: 1 døgn | E5: 2 døgn | H5: 3 døgn | K5: 4 døgn | N5: 5 døgn
A6: %>TEa | B6: =AF6 -> 0 | E6: =AG6 -> 0 | H6: =AH6 -> 0 | K6: =AI6 -> 0 | N6: =AJ6 -> 0.02631578947 | AF6: =IF(COUNT(AF8:AF45)>0,(COUNTIF(AF8:AF45,">"&$N4)+COUNTIF(AF8:AF45,"<-"&$N4))/COUNT(AF8:AF45),"") -> 0 | AG6: =IF(COUNT(AG8:AG45)>0,(COUNTIF(AG8:AG45,">"&$N4)+COUNTIF(AG8:AG45,"<-"&$N4))/COUNT(AG8:AG45),"") -> 0 | AH6: 0 | AI6: 0 | AJ6: 0.02631578947
B7: Ref | C7: R | D7: Kum | E7: Ref | F7: R | G7: Kum | H7: Ref | I7: R | J7: Kum | K7: Ref | L7: R | M7: Kum | N7: Ref | O7: R | P7: Kum | S7: 1 | T7: =K_1 -> 1.016666667 | V7: =K_2 -> 0 | AF7: =B5 -> 1 døgn | AG7: =E5 -> 2 døgn | AH7: =H5 -> 3 døgn | AI7: =K5 -> 4 døgn | AJ7: =N5 -> 5 døgn | AK7: TEa
A8: Prøve 1 | B8: 7 | C8: 7 | D8: =IF(C8="","",IF(fast_s,(C8-B8)/s,LN(C8/B8)/s)) -> 0 | E8: 7 | F8: 7 | G8: =IF(F8="","",IF(fast_s,(F8-E8)/s,LN(F8/E8)/s)) -> 0 | H8: 7 | I8: 7 | J8: =IF(I8="","",IF(fast_s,(I8-H8)/s,LN(I8/H8)/s)) -> 0 | K8: 7 | L8: 7 | M8: =IF(L8="","",IF(fast_s,(L8-K8)/s,LN(L8/K8)/s)) -> 0 | N8: 7 | O8: 7 | P8: =IF(O8="","",IF(fast_s,(O8-N8)/s,LN(O8/N8)/s)) -> 0 | R8: 1 | S8: 7.775 | T8: =R8/K_1^2 -> 0.9674818597 | U8: =S8/K_1 -> 7.647540984 | V8: =R8/K_2^2 ->  | W8: =S8/K_2 ->  | X8: 1 | Y8: 7.775 | Z8: 0 | AA8: 6.194301075 | AB8: 0 | AC8: 4.786505376 | AD8: 0 | AE8: =A8 -> Prøve 1 | AF8: =IF(D8="","",D8) -> 0 | AG8: =IF(G8="","",G8) -> 0 | AH8: =IF(J8="","",J8) -> 0 | AI8: =IF(M8="","",M8) -> 0 | AJ8: =IF(P8="","",P8) -> 0 | AK8: =-N$4 -> -2.333333333 | AL8: =N$4 -> 2.333333333
A9: Prøve 2 | B9: 444 | C9: 438 | D9: =IF(C9="","",D8+IF(fast_s,(C9-B9)/s,LN(C9/B9)/s)) -> -0.2267608676 | E9: 444 | F9: 452 | G9: =IF(F9="","",G8+IF(fast_s,(F9-E9)/s,LN(F9/E9)/s)) -> 0.2976269567 | H9: 444 | I9: 436 | J9: =IF(I9="","",J8+IF(fast_s,(I9-H9)/s,LN(I9/H9)/s)) -> -0.3030386514 | K9: 444 | L9: 429 | M9: =IF(L9="","",M8+IF(fast_s,(L9-K9)/s,LN(L9/K9)/s)) -> -0.5727940584 | N9: 444 | O9: 416 | P9: =IF(O9="","",P8+IF(fast_s,(O9-N9)/s,LN(O9/N9)/s)) -> -1.085655036 | R9: 2 | S9: 8.275 | T9: =R9/K_1^2 -> 1.934963719 | U9: =S9/K_1 -> 8.139344262 | V9: =R9/K_2^2 ->  | W9: =S9/K_2 ->  | X9: 2 | Y9: 8.275 | Z9: 0 | AA9: 6.86206646 | AB9: 0 | AC9: 5.743931856 | AD9: 0 | AE9: =A9 -> Prøve 2 | AF9: =IF(D9="","",D9-D8) -> -0.2267608676 | AG9: =IF(G9="","",G9-G8) -> 0.2976269567 | AH9: =IF(J9="","",J9-J8) -> -0.3030386514 | AI9: =IF(M9="","",M9-M8) -> -0.5727940584 | AJ9: =IF(P9="","",P9-P8) -> -1.085655036 | AK9: =-N$4 -> -2.333333333 | AL9: =N$4 -> 2.333333333
A10: Prøve 3 | B10: 3.5 | C10: 3.6 | D10: 0.2427537485 | E10: 3.5 | F10: 3.6 | G10: 0.7671415728 | H10: 3.5 | I10: 3.6 | J10: 0.1664759647 | K10: 3.5 | L10: 3.4 | M10: -1.055919673 | N10: 3.5 | O10: 3.6 | P10: -0.6161404201 | R10: 3 | S10: 8.775 | T10: 2.902445579 | U10: 8.631147541 | X10: 3 | Y10: 8.775 | Z10: 0 | AA10: 7.529831844 | AB10: 0 | AC10: 6.701358336 | AD10: 0 | AE10: Prøve 3 | AF10: =IF(D10="","",D10-D9) -> 0.4695146161 | AG10: 0.4695146161 | AH10: 0.4695146161 | AI10: -0.4831256146 | AJ10: 0.4695146161 | AK10: -2.333333333 | AL10: 2.333333333
A11: Prøve 4 | B11: 3 | C11: 3 | D11: 0.2427537485 | E11: 3 | F11: 3 | G11: 0.7671415728 | H11: 3 | I11: 3 | J11: 0.1664759647 | K11: 3 | L11: 3 | M11: -1.055919673 | N11: 3 | O11: 3 | P11: -0.6161404201 | R11: 4 | S11: 9.275 | T11: 3.869927439 | U11: 9.12295082 | X11: 4 | Y11: 9.275 | Z11: 0 | AA11: 8.197597228 | AB11: 0 | AC11: 7.658784816 | AD11: 0.7 | AE11: Prøve 4 | AF11: 0 | AG11: 0 | AH11: 0 | AI11: 0 | AJ11: 0 | AK11: -2.333333333 | AL11: 2.333333333
A12: Prøve 5 | B12: 2 | C12: 2 | D12: 0.2427537485 | E12: 2 | F12: 2 | G12: 0.7671415728 | H12: 2 | I12: 2 | J12: 0.1664759647 | K12: 2 | L12: 2 | M12: -1.055919673 | N12: 2 | O12: 2 | P12: -0.6161404201 | R12: 5 | S12: 9.775 | T12: 4.837409299 | U12: 9.614754098 | X12: 5 | Y12: 9.775 | Z12: 0 | AA12: 8.865362613 | AB12: 0 | AC12: 8.616211296 | AD12: 2.7 | AE12: Prøve 5 | AF12: 0 | AG12: 0 | AH12: 0 | AI12: 0 | AJ12: 0 | AK12: -2.333333333 | AL12: 2.333333333
A13: Prøve 6 | B13: 2 | C13: 2 | D13: 0.2427537485 | E13: 2 | F13: 2 | G13: 0.7671415728 | H13: 2 | I13: 2 | J13: 0.1664759647 | K13: 2 | L13: 2 | M13: -1.055919673 | N13: 2 | O13: 2 | P13: -0.6161404201 | R13: 6 | S13: 10.275 | T13: 5.804891158 | U13: 10.10655738 | X13: 6 | Y13: 10.275 | Z13: 0 | AA13: 9.533127997 | AB13: 0 | AC13: 9.573637776 | AD13: 4 | AE13: Prøve 6 | AF13: 0 | AG13: 0 | AH13: 0 | AI13: 0 | AJ13: 0 | AK13: -2.333333333 | AL13: 2.333333333
A14: Prøve 7 | B14: 2 | C14: 2 | D14: 0.2427537485 | E14: 2 | F14: 2 | G14: 0.7671415728 | H14: 2 | I14: 2 | J14: 0.1664759647 | K14: 2 | L14: 2 | M14: -1.055919673 | N14: 2 | O14: 2 | P14: -0.6161404201 | R14: 7 | S14: 10.775 | T14: 6.772373018 | U14: 10.59836066 | X14: 7 | Y14: 10.775 | Z14: 0 | AA14: 10.20089338 | AB14: 0.8 | AC14: 10.53106426 | AD14: 5.4 | AE14: Prøve 7 | AF14: 0 | AG14: 0 | AH14: 0 | AI14: 0 | AJ14: 0 | AK14: -2.333333333 | AL14: 2.333333333
A15: Prøve 8 | B15: 1.6 | C15: 1.5 | D15: -0.8328882704 | E15: 1.6 | F15: 1.5 | G15: -0.3085004462 | H15: 1.6 | I15: 1.5 | J15: -0.9091660542 | K15: 1.6 | L15: 1.5 | M15: -2.131561692 | N15: 1.6 | O15: 1.4 | P15: -2.84166363 | R15: 8 | S15: 11.275 | T15: 7.739854878 | U15: 11.09016393 | X15: 8 | Y15: 11.275 | Z15: 0 | AA15: 10.86865877 | AB15: 2.3 | AC15: 11.48849074 | AD15: 7 | AE15: Prøve 8 | AF15: -1.075642019 | AG15: -1.075642019 | AH15: -1.075642019 | AI15: -1.075642019 | AJ15: -2.22552321 | AK15: -2.333333333 | AL15: 2.333333333
A16: Prøve 9 | B16: 2 | C16: 2 | D16: -0.8328882704 | E16: 2 | F16: 2 | G16: -0.3085004462 | H16: 2 | I16: 2 | J16: -0.9091660542 | K16: 2 | L16: 2 | M16: -2.131561692 | N16: 2 | O16: 2 | P16: -2.84166363 | R16: 9 | S16: 11.775 | T16: 8.707336737 | U16: 11.58196721 | X16: 9 | Y16: 11.775 | Z16: 0 | AA16: 11.53642415 | AB16: 3.3 | AC16: 12.44591722 | AD16: 9.2 | AE16: Prøve 9 | AF16: 0 | AG16: 0 | AH16: 0 | AI16: 0 | AJ16: 0 | AK16: -2.333333333 | AL16: 2.333333333
A17: Prøve 10 | B17: 2.7 | C17: 2.7 | D17: -0.8328882704 | E17: 2.7 | F17: 2.7 | G17: -0.3085004462 | H17: 2.7 | I17: 2.6 | J17: -1.538171521 | K17: 2.7 | L17: 2.7 | M17: -2.131561692 | N17: 2.7 | O17: 2.4 | P17: -4.804714225 | R17: 10 | S17: 12.275 | T17: 9.674818597 | U17: 12.07377049 | X17: 10 | Y17: 12.275 | Z17: 0 | AA17: 12.20418953 | AB17: 4.2 | AC17: 12.94377899 | AD17: 12.95005905 | AE17: Prøve 10 | AF17: 0 | AG17: 0 | AH17: -0.6290054664 | AI17: 0 | AJ17: -1.963050594 | AK17: -2.333333333 | AL17: 2.333333333
A18: Prøve 11 | B18: 8 | C18: 8 | D18: -0.8328882704 | E18: 8 | F18: 8 | G18: -0.3085004462 | H18: 8 | I18: 8 | J18: -1.538171521 | K18: 8 | L18: 8 | M18: -2.131561692 | N18: 8 | O18: 8 | P18: -4.804714225 | R18: 11 | S18: 12.775 | T18: 10.64230046 | U18: 12.56557377 | X18: 11 | Y18: 12.775 | Z18: 0 | AA18: 12.87195492 | AB18: 5.1 | AE18: Prøve 11 | AF18: 0 | AG18: 0 | AH18: 0 | AI18: 0 | AJ18: 0 | AK18: -2.333333333 | AL18: 2.333333333
A19: Prøve 12 | B19: 5 | C19: 5 | D19: -0.8328882704 | E19: 5 | F19: 5 | G19: -0.3085004462 | H19: 5 | I19: 5 | J19: -1.538171521 | K19: 5 | L19: 5 | M19: -2.131561692 | N19: 5 | O19: 5 | P19: -4.804714225 | R19: 12 | S19: 13.275 | T19: 11.60978232 | U19: 13.05737705 | X19: 12 | Y19: 13.275 | Z19: 0 | AA19: 13.5397203 | AB19: 6 | AE19: Prøve 12 | AF19: 0 | AG19: 0 | AH19: 0 | AI19: 0 | AJ19: 0 | AK19: -2.333333333 | AL19: 2.333333333
A20: Prøve 13 | B20: 3.6 | C20: 3.7 | D20: -0.3762387006 | E20: 3.6 | F20: 3.6 | G20: -0.3085004462 | H20: 3.6 | I20: 3.6 | J20: -1.538171521 | K20: 3.6 | L20: 3.5 | M20: -2.601076308 | N20: 3.6 | O20: 3.5 | P20: -5.274228841 | R20: 13 | S20: 13.775 | T20: 12.57726418 | U20: 13.54918033 | X20: 13 | Y20: 13.775 | Z20: 0 | AA20: 14.20748569 | AB20: 7.3 | AE20: Prøve 13 | AF20: 0.4566495698 | AG20: 0 | AH20: 0 | AI20: -0.4695146161 | AJ20: -0.4695146161 | AK20: -2.333333333 | AL20: 2.333333333
A21: Prøve 14 | B21: 362 | C21: 365 | D21: -0.238686338 | E21: 362 | F21: 361 | G21: -0.3546046711 | H21: 362 | I21: 348 | J21: -2.195533721 | K21: 362 | L21: 349 | M21: -3.210614468 | N21: 362 | O21: 340 | P21: -6.319205411 | R21: 14 | S21: 14.275 | T21: 13.54474604 | U21: 14.04098361 | X21: 14 | Y21: 14.275 | Z21: 0 | AA21: 14.87525107 | AB21: 8.7 | AE21: Prøve 14 | AF21: 0.1375523626 | AG21: -0.04610422488 | AH21: -0.6573622009 | AI21: -0.6095381604 | AJ21: -1.04497657 | AK21: -2.333333333 | AL21: 2.333333333
A22: Prøve 15 | B22: 3 | C22: 3 | D22: -0.238686338 | E22: 3 | F22: 3 | G22: -0.3546046711 | H22: 3 | I22: 3 | J22: -2.195533721 | K22: 3 | L22: 3 | M22: -3.210614468 | N22: 3 | O22: 3 | P22: -6.319205411 | R22: 15 | S22: 14.775 | T22: 14.5122279 | U22: 14.53278689 | X22: 15 | Y22: 14.775 | Z22: 0.2 | AA22: 15.54301646 | AB22: 10 | AE22: Prøve 15 | AF22: 0 | AG22: 0 | AH22: 0 | AI22: 0 | AJ22: 0 | AK22: -2.333333333 | AL22: 2.333333333
A23: Prøve 16 | B23: 3 | C23: 3 | D23: -0.238686338 | E23: 3 | F23: 3 | G23: -0.3546046711 | H23: 3 | I23: 3 | J23: -2.195533721 | K23: 3 | L23: 3 | M23: -3.210614468 | N23: 3 | O23: 3 | P23: -6.319205411 | R23: 16 | S23: 15.275 | T23: 15.47970976 | U23: 15.02459016 | X23: 16 | Y23: 15.275 | Z23: 1.6 | AA23: 16.21078184 | AB23: 12 | AE23: Prøve 16 | AF23: 0 | AG23: 0 | AH23: 0 | AI23: 0 | AJ23: 0 | AK23: -2.333333333 | AL23: 2.333333333
A24: Prøve 17 | B24: 2 | C24: 2 | D24: -0.238686338 | E24: 2 | F24: 2 | G24: -0.3546046711 | H24: 2 | I24: 2 | J24: -2.195533721 | K24: 2 | L24: 2 | M24: -3.210614468 | N24: 2 | O24: 2 | P24: -6.319205411 | R24: 17 | S24: 15.775 | T24: 16.44719162 | U24: 15.51639344 | X24: 17 | Y24: 15.775 | Z24: 2.2 | AA24: 16.87854723 | AB24: 14.5 | AE24: Prøve 17 | AF24: 0 | AG24: 0 | AH24: 0 | AI24: 0 | AJ24: 0 | AK24: -2.333333333 | AL24: 2.333333333
A25: Prøve 18 | B25: 1 | C25: 1 | D25: -0.238686338 | E25: 1 | F25: 1 | G25: -0.3546046711 | H25: 1 | I25: 1 | J25: -2.195533721 | K25: 1 | L25: 1 | M25: -3.210614468 | N25: 1 | O25: 1 | P25: -6.319205411 | R25: 18 | S25: 16.275 | T25: 17.41467347 | U25: 16.00819672 | X25: 18 | Y25: 16.275 | Z25: 3 | AA25: 17.17 | AB25: 17.17 | AE25: Prøve 18 | AF25: 0 | AG25: 0 | AH25: 0 | AI25: 0 | AJ25: 0 | AK25: -2.333333333 | AL25: 2.333333333
A26: Prøve 19 | B26: 3 | C26: 3 | D26: -0.238686338 | E26: 3 | F26: 3 | G26: -0.3546046711 | H26: 3 | I26: 3 | J26: -2.195533721 | K26: 3 | L26: 3 | M26: -3.210614468 | N26: 3 | O26: 3 | P26: -6.319205411 | R26: 19 | S26: 16.775 | T26: 18.38215533 | U26: 16.5 | X26: 19 | Y26: 16.775 | Z26: 3.6 | AE26: Prøve 19 | AF26: 0 | AG26: 0 | AH26: 0 | AI26: 0 | AJ26: 0 | AK26: -2.333333333 | AL26: 2.333333333
A27: Prøve 20 | B27: 266 | C27: 275 | D27: 0.3158934767 | E27: 266 | F27: 275 | G27: 0.1999751437 | H27: 266 | I27: 276 | J27: -1.580457773 | K27: 266 | L27: 265 | M27: -3.273389182 | N27: 266 | O27: 279 | P27: -5.523947527 | R27: 20 | S27: 17.275 | T27: 19.34963719 | U27: 16.99180328 | X27: 20 | Y27: 17.275 | Z27: 4.2 | AE27: Prøve 20 | AF27: 0.5545798147 | AG27: 0.5545798147 | AH27: 0.6150759489 | AI27: -0.06277471326 | AJ27: 0.795257884 | AK27: -2.333333333 | AL27: 2.333333333
A28: Prøve 21 | B28: 1 | C28: 1 | D28: 0.3158934767 | E28: 1 | F28: 1 | G28: 0.1999751437 | H28: 1 | I28: 1 | J28: -1.580457773 | K28: 1 | L28: 1 | M28: -3.273389182 | N28: 1 | O28: 1 | P28: -5.523947527 | R28: 21 | S28: 17.775 | T28: 20.31711905 | U28: 17.48360656 | X28: 21 | Y28: 17.775 | Z28: 5 | AE28: Prøve 21 | AF28: 0 | AG28: 0 | AH28: 0 | AI28: 0 | AJ28: 0 | AK28: -2.333333333 | AL28: 2.333333333
A29: Prøve 22 | B29: 2 | C29: 2 | D29: 0.3158934767 | E29: 2 | F29: 2 | G29: 0.1999751437 | H29: 2 | I29: 2 | J29: -1.580457773 | K29: 2 | L29: 2 | M29: -3.273389182 | N29: 2 | O29: 2 | P29: -5.523947527 | R29: 22 | S29: 18.275 | T29: 21.28460091 | U29: 17.97540984 | X29: 22 | Y29: 18.275 | Z29: 5.6 | AE29: Prøve 22 | AF29: 0 | AG29: 0 | AH29: 0 | AI29: 0 | AJ29: 0 | AK29: -2.333333333 | AL29: 2.333333333
A30: Prøve 23 | B30: 32 | C30: 32 | D30: 0.3158934767 | E30: 32 | F30: 32 | G30: 0.1999751437 | H30: 32 | I30: 32 | J30: -1.580457773 | K30: 32 | L30: 32 | M30: -3.273389182 | N30: 32 | O30: 32 | P30: -5.523947527 | R30: 23 | S30: 18.775 | T30: 22.25208277 | U30: 18.46721311 | X30: 23 | Y30: 18.775 | Z30: 6.4 | AE30: Prøve 23 | AF30: 0 | AG30: 0 | AH30: 0 | AI30: 0 | AJ30: 0 | AK30: -2.333333333 | AL30: 2.333333333
A31: Prøve 24 | B31: 1 | C31: 1 | D31: 0.3158934767 | E31: 1 | F31: 1 | G31: 0.1999751437 | H31: 1 | I31: 1 | J31: -1.580457773 | K31: 1 | L31: 1 | M31: -3.273389182 | N31: 1 | O31: 1 | P31: -5.523947527 | R31: 24 | S31: 19.275 | T31: 23.21956463 | U31: 18.95901639 | X31: 24 | Y31: 19.275 | Z31: 7 | AE31: Prøve 24 | AF31: 0 | AG31: 0 | AH31: 0 | AI31: 0 | AJ31: 0 | AK31: -2.333333333 | AL31: 2.333333333
A32: Prøve 25 | B32: 5 | C32: 5 | D32: 0.3158934767 | E32: 5 | F32: 5 | G32: 0.1999751437 | H32: 5 | I32: 5 | J32: -1.580457773 | K32: 5 | L32: 5 | M32: -3.273389182 | N32: 5 | O32: 5 | P32: -5.523947527 | R32: 25 | S32: 19.775 | T32: 24.18704649 | U32: 19.45081967 | X32: 25 | Y32: 19.775 | Z32: 7.8 | AE32: Prøve 25 | AF32: 0 | AG32: 0 | AH32: 0 | AI32: 0 | AJ32: 0 | AK32: -2.333333333 | AL32: 2.333333333
A33: Prøve 26 | B33: 3 | C33: 3 | D33: 0.3158934767 | E33: 3 | F33: 3 | G33: 0.1999751437 | H33: 3 | I33: 3 | J33: -1.580457773 | K33: 3 | L33: 3 | M33: -3.273389182 | N33: 3 | O33: 3 | P33: -5.523947527 | R33: 26 | S33: 20.275 | T33: 25.15452835 | U33: 19.94262295 | X33: 26 | Y33: 20.275 | Z33: 8.6 | AE33: Prøve 26 | AF33: 0 | AG33: 0 | AH33: 0 | AI33: 0 | AJ33: 0 | AK33: -2.333333333 | AL33: 2.333333333
A34: Prøve 27 | B34: 8 | C34: 8 | D34: 0.3158934767 | E34: 8 | F34: 8 | G34: 0.1999751437 | H34: 8 | I34: 8 | J34: -1.580457773 | K34: 8 | L34: 8 | M34: -3.273389182 | N34: 8 | O34: 8 | P34: -5.523947527 | R34: 27 | S34: 20.775 | T34: 26.12201021 | U34: 20.43442623 | X34: 27 | Y34: 20.775 | Z34: 9.4 | AE34: Prøve 27 | AF34: 0 | AG34: 0 | AH34: 0 | AI34: 0 | AJ34: 0 | AK34: -2.333333333 | AL34: 2.333333333
A35: Prøve 28 | B35: 2 | C35: 2 | D35: 0.3158934767 | E35: 2 | F35: 2 | G35: 0.1999751437 | H35: 2 | I35: 2 | J35: -1.580457773 | K35: 2 | L35: 2 | M35: -3.273389182 | N35: 2 | O35: 2 | P35: -5.523947527 | R35: 28 | S35: 21.275 | T35: 27.08949207 | U35: 20.92622951 | X35: 28 | Y35: 21.275 | Z35: 10.2 | AE35: Prøve 28 | AF35: 0 | AG35: 0 | AH35: 0 | AI35: 0 | AJ35: 0 | AK35: -2.333333333 | AL35: 2.333333333
A36: Prøve 29 | B36: 6 | C36: 6 | D36: 0.3158934767 | E36: 6 | F36: 6 | G36: 0.1999751437 | H36: 6 | I36: 6 | J36: -1.580457773 | K36: 6 | L36: 6 | M36: -3.273389182 | N36: 6 | O36: 6 | P36: -5.523947527 | R36: 29 | S36: 21.775 | T36: 28.05697393 | U36: 21.41803279 | X36: 29 | Y36: 21.775 | Z36: 11.2 | AE36: Prøve 29 | AF36: 0 | AG36: 0 | AH36: 0 | AI36: 0 | AJ36: 0 | AK36: -2.333333333 | AL36: 2.333333333
A37: Prøve 30 | B37: 1 | C37: 1 | D37: 0.3158934767 | E37: 1 | F37: 1 | G37: 0.1999751437 | H37: 1 | I37: 1 | J37: -1.580457773 | K37: 1 | L37: 1 | M37: -3.273389182 | N37: 1 | O37: 1 | P37: -5.523947527 | R37: 30 | S37: 22.275 | T37: 29.02445579 | U37: 21.90983607 | X37: 30 | Y37: 22.275 | Z37: 12 | AE37: Prøve 30 | AF37: 0 | AG37: 0 | AH37: 0 | AI37: 0 | AJ37: 0 | AK37: -2.333333333 | AL37: 2.333333333
A38: Prøve 31 | B38: 3 | C38: 3 | D38: 0.3158934767 | E38: 3 | F38: 3 | G38: 0.1999751437 | H38: 3 | I38: 3 | J38: -1.580457773 | K38: 3 | L38: 3 | M38: -3.273389182 | N38: 2.8 | O38: 2.4 | P38: -8.093125524 | R38: 31 | S38: 22.775 | T38: 29.99193765 | U38: 22.40163934 | X38: 31 | Y38: 22.775 | Z38: 13 | AE38: Prøve 31 | AF38: 0 | AG38: 0 | AH38: 0 | AI38: 0 | AJ38: -2.569177997 | AK38: -2.333333333 | AL38: 2.333333333
A39: Prøve 32 | B39: 59 | C39: 59 | D39: 0.3158934767 | E39: 59 | F39: 59 | G39: 0.1999751437 | H39: 59 | I39: 57 | J39: -2.155227374 | K39: 59 | L39: 57 | M39: -3.848158783 | N39: 59 | O39: 56 | P39: -8.962888077 | R39: 32 | S39: 23.275 | T39: 30.95941951 | U39: 22.89344262 | X39: 32 | Y39: 23.275 | Z39: 14 | AE39: Prøve 32 | AF39: 0 | AG39: 0 | AH39: -0.5747696012 | AI39: -0.5747696012 | AJ39: -0.8697625528 | AK39: -2.333333333 | AL39: 2.333333333
A40: Prøve 33 | B40: 87 | C40: 85 | D40: -0.07172089269 | E40: 87 | F40: 85 | G40: -0.1876392257 | H40: 87 | I40: 86 | J40: -2.347907747 | K40: 87 | L40: 85 | M40: -4.235773152 | N40: 87 | O40: 86 | P40: -9.15556845 | R40: 33 | S40: 23.775 | T40: 31.92690137 | U40: 23.3852459 | X40: 33 | Y40: 23.775 | Z40: 15.2 | AE40: Prøve 33 | AF40: -0.3876143694 | AG40: -0.3876143694 | AH40: -0.1926803734 | AI40: -0.3876143694 | AJ40: -0.1926803734 | AK40: -2.333333333 | AL40: 2.333333333
A41: Prøve 34 | B41: 73 | C41: 77 | D41: 0.8173787857 | E41: 73 | F41: 76 | G41: 0.4835924266 | H41: 73 | I41: 76 | J41: -1.676676095 | K41: 73 | L41: 76 | M41: -3.5645415 | N41: 73 | O41: 73 | P41: -9.15556845 | R41: 34 | S41: 24.275 | T41: 32.89438323 | U41: 23.87704918 | X41: 34 | Y41: 24.275 | Z41: 16.4 | AE41: Prøve 34 | AF41: 0.8890996784 | AG41: 0.6712316523 | AH41: 0.6712316523 | AI41: 0.6712316523 | AJ41: 0 | AK41: -2.333333333 | AL41: 2.333333333
A42: Prøve 35 | B42: 2 | C42: 2 | D42: 0.8173787857 | E42: 2 | F42: 2 | G42: 0.4835924266 | H42: 2 | I42: 2 | J42: -1.676676095 | K42: 2 | L42: 2 | M42: -3.5645415 | N42: 2 | O42: 2 | P42: -9.15556845 | R42: 35 | S42: 24.775 | T42: 33.86186509 | U42: 24.36885246 | X42: 35 | Y42: 24.775 | Z42: 17.8 | AE42: Prøve 35 | AF42: 0 | AG42: 0 | AH42: 0 | AI42: 0 | AJ42: 0 | AK42: -2.333333333 | AL42: 2.333333333
A43: Prøve 36 | B43: 5 | C43: 5 | D43: 0.8173787857 | E43: 5 | F43: 5 | G43: 0.4835924266 | H43: 5 | I43: 5 | J43: -1.676676095 | K43: 5 | L43: 5 | M43: -3.5645415 | N43: 5 | O43: 5 | P43: -9.15556845 | R43: 36 | S43: 25.275 | T43: 34.82934695 | U43: 24.86065574 | X43: 36 | Y43: 25.275 | Z43: 19.4 | AE43: Prøve 36 | AF43: 0 | AG43: 0 | AH43: 0 | AI43: 0 | AJ43: 0 | AK43: -2.333333333 | AL43: 2.333333333
A44: Prøve 37 | B44: 1 | C44: 1 | D44: 0.8173787857 | E44: 1 | F44: 1 | G44: 0.4835924266 | H44: 1 | I44: 1 | J44: -1.676676095 | K44: 1 | L44: 1 | M44: -3.5645415 | N44: 1 | O44: 1 | P44: -9.15556845 | R44: 37 | S44: 25.775 | T44: 35.79682881 | U44: 25.35245902 | X44: 37 | Y44: 25.775 | Z44: 21.6 | AE44: Prøve 37 | AF44: 0 | AG44: 0 | AH44: 0 | AI44: 0 | AJ44: 0 | AK44: -2.333333333 | AL44: 2.333333333
A45: Prøve 38 | B45: 2 | C45: 2 | D45: 0.8173787857 | E45: 2 | F45: 2 | G45: 0.4835924266 | H45: 2 | I45: 2 | J45: -1.676676095 | K45: 2 | L45: 2 | M45: -3.5645415 | N45: 2 | O45: 2 | P45: -9.15556845 | R45: 37.82 | S45: 26.185 | T45: 36.59016393 | U45: 25.7557377 | X45: 38 | Y45: 26.185 | Z45: 26.185 | AE45: Prøve 38 | AF45: 0 | AG45: 0 | AH45: 0 | AI45: 0 | AJ45: 0 | AK45: -2.333333333 | AL45: 2.333333333
R46: 36 | S46: 19.4 | T46: 34.82934695 | U46: 19.08196721 | X46: 40
R47: 35 | S47: 17.8 | T47: 33.86186509 | U47: 17.50819672
R48: 34 | S48: 16.4 | T48: 32.89438323 | U48: 16.13114754
R49: 33 | S49: 15.2 | T49: 31.92690137 | U49: 14.95081967
R50: 32 | S50: 14 | T50: 30.95941951 | U50: 13.7704918
R51: 31 | S51: 13 | T51: 29.99193765 | U51: 12.78688525
R52: 30 | S52: 12 | T52: 29.02445579 | U52: 11.80327869
R53: 29 | S53: 11.2 | T53: 28.05697393 | U53: 11.01639344
R54: 28 | S54: 10.2 | T54: 27.08949207 | U54: 10.03278689
R55: 27 | S55: 9.4 | T55: 26.12201021 | U55: 9.245901639
R56: 26 | S56: 8.6 | T56: 25.15452835 | U56: 8.459016393
R57: 25 | S57: 7.8 | T57: 24.18704649 | U57: 7.672131148
R58: 24 | S58: 7 | T58: 23.21956463 | U58: 6.885245902
R59: 23 | S59: 6.4 | T59: 22.25208277 | U59: 6.295081967
R60: 22 | S60: 5.6 | T60: 21.28460091 | U60: 5.508196721
R61: 21 | S61: 5 | T61: 20.31711905 | U61: 4.918032787
R62: 20 | S62: 4.2 | T62: 19.34963719 | U62: 4.131147541
R63: 19 | S63: 3.6 | T63: 18.38215533 | U63: 3.540983607
R64: 18 | S64: 3 | T64: 17.41467347 | U64: 2.950819672
R65: 17 | S65: 2.2 | T65: 16.44719162 | U65: 2.163934426
R66: 16 | S66: 1.6 | T66: 15.47970976 | U66: 1.573770492
R67: 15 | S67: 0.2 | T67: 14.5122279 | U67: 0.1967213115
R68: 14.94 | S68: 0 | T68: 14.45417898 | U68: 0
R69: 15 | S69: -0.2 | T69: 14.5122279 | U69: -0.1967213115
R70: 16 | S70: -1.6 | T70: 15.47970976 | U70: -1.573770492
R71: 17 | S71: -2.2 | T71: 16.44719162 | U71: -2.163934426
R72: 18 | S72: -3 | T72: =R72/K_1^2 -> 17.41467347 | U72: =S72/K_1 -> -2.950819672 | V72: =R72/K_2^2 ->  | W72: =S72/K_2 -> 
R73: 19 | S73: -3.6 | T73: 18.38215533 | U73: -3.540983607
R74: 20 | S74: -4.2 | T74: 19.34963719 | U74: -4.131147541
R75: 21 | S75: -5 | T75: 20.31711905 | U75: -4.918032787
R76: 22 | S76: -5.6 | T76: 21.28460091 | U76: -5.508196721
R77: 23 | S77: -6.4 | T77: 22.25208277 | U77: -6.295081967
R78: 24 | S78: -7 | T78: 23.21956463 | U78: -6.885245902
R79: 25 | S79: -7.8 | T79: 24.18704649 | U79: -7.672131148
R80: 26 | S80: -8.6 | T80: 25.15452835 | U80: -8.459016393
R81: 27 | S81: -9.4 | T81: 26.12201021 | U81: -9.245901639
R82: 28 | S82: -10.2 | T82: 27.08949207 | U82: -10.03278689
R83: 29 | S83: -11.2 | T83: 28.05697393 | U83: -11.01639344
R84: 30 | S84: -12 | T84: 29.02445579 | U84: -11.80327869
R85: 31 | S85: -13 | T85: 29.99193765 | U85: -12.78688525
R86: 32 | S86: -14 | T86: 30.95941951 | U86: -13.7704918
R87: 33 | S87: -15.2 | T87: 31.92690137 | U87: -14.95081967
R88: 34 | S88: -16.4 | T88: 32.89438323 | U88: -16.13114754
R89: 35 | S89: -17.8 | T89: 33.86186509 | U89: -17.50819672
R90: 36 | S90: -19.4 | T90: 34.82934695 | U90: -19.08196721
R91: 37 | S91: -21.6 | T91: 35.79682881 | U91: -21.24590164
R92: 37.82 | S92: -26.185 | T92: 36.59016393 | U92: -25.7557377
R93: 37 | S93: -25.775 | T93: 35.79682881 | U93: -25.35245902
R94: 36 | S94: -25.275 | T94: 34.82934695 | U94: -24.86065574
R95: 35 | S95: -24.775 | T95: 33.86186509 | U95: -24.36885246
R96: 34 | S96: -24.275 | T96: 32.89438323 | U96: -23.87704918
R97: 33 | S97: -23.775 | T97: 31.92690137 | U97: -23.3852459
R98: 32 | S98: -23.275 | T98: 30.95941951 | U98: -22.89344262
R99: 31 | S99: -22.775 | T99: 29.99193765 | U99: -22.40163934
R100: 30 | S100: -22.275 | T100: 29.02445579 | U100: -21.90983607
R101: 29 | S101: -21.775 | T101: 28.05697393 | U101: -21.41803279
R102: 28 | S102: -21.275 | T102: 27.08949207 | U102: -20.92622951
R103: 27 | S103: -20.775 | T103: 26.12201021 | U103: -20.43442623
R104: 26 | S104: -20.275 | T104: 25.15452835 | U104: -19.94262295
R105: 25 | S105: -19.775 | T105: 24.18704649 | U105: -19.45081967
R106: 24 | S106: -19.275 | T106: 23.21956463 | U106: -18.95901639
R107: 23 | S107: -18.775 | T107: 22.25208277 | U107: -18.46721311
R108: 22 | S108: -18.275 | T108: 21.28460091 | U108: -17.97540984
R109: 21 | S109: -17.775 | T109: 20.31711905 | U109: -17.48360656
R110: 20 | S110: -17.275 | T110: 19.34963719 | U110: -16.99180328
R111: 19 | S111: -16.775 | T111: 18.38215533 | U111: -16.5
R112: 18 | S112: -16.275 | T112: 17.41467347 | U112: -16.00819672
R113: 17 | S113: -15.775 | T113: 16.44719162 | U113: -15.51639344
R114: 16 | S114: -15.275 | T114: 15.47970976 | U114: -15.02459016
R115: 15 | S115: -14.775 | T115: 14.5122279 | U115: -14.53278689
R116: 14 | S116: -14.275 | T116: 13.54474604 | U116: -14.04098361
R117: 13 | S117: -13.775 | T117: 12.57726418 | U117: -13.54918033
R118: 12 | S118: -13.275 | T118: 11.60978232 | U118: -13.05737705
R119: 11 | S119: -12.775 | T119: 10.64230046 | U119: -12.56557377
R120: 10 | S120: -12.275 | T120: 9.674818597 | U120: -12.07377049
R121: 9 | S121: -11.775 | T121: 8.707336737 | U121: -11.58196721
R122: 8 | S122: -11.275 | T122: 7.739854878 | U122: -11.09016393
R123: 7 | S123: -10.775 | T123: 6.772373018 | U123: -10.59836066
R124: 6 | S124: -10.275 | T124: 5.804891158 | U124: -10.10655738
R125: 5 | S125: -9.775 | T125: 4.837409299 | U125: -9.614754098
R126: 4 | S126: -9.275 | T126: 3.869927439 | U126: -9.12295082
R127: 3 | S127: -8.775 | T127: 2.902445579 | U127: -8.631147541
R128: 2 | S128: -8.275 | T128: 1.934963719 | U128: -8.139344262
R129: 1 | S129: -7.775 | T129: 0.9674818597 | U129: -7.647540984

Sheet Konklusjon
B3: Vurdering av funn og annen viktig informasjon til forsøket:
B6: Kvalitetsmål:
B7: Bias ≤ 6,1%
B8: Impresisjon ≤ 6,0%
B9: TE ≤ 14%
B15: Konklusjon:
B19: Holdbarheten for CK-MB (prøverør: Vacuette, heparinplasma) er 5 døgn når prøven er oppbevart i kjøleskap.
B23: Dato og signatur: | D23: 2020-03-18 | E23: Ragnhild Heier Skauby, valideringsansvarlig overlege.

Sheet Kvalitetsmål
B2: Cvi | C2: CVbw | D2: BIAS 1/3*CVi | E2: BIAS 1/4*Total | F2: Impresisjon | G2: TE
B3: 18.4 | C3: 61.2 | D3: =$B$3/3 -> 6.133333333 | E3: =0.25*(SQRT((POWER(B3,2)+(POWER(C3,2))))) -> 15.97654531 | F3: 6 | G3: =(1.65*$F$3)+$D$3 -> 16.03333333
